[Event "Dutch Open 2022"]
[Site "Dieren"]
[Date "2022.08.04"]
[Round "9.7"]
[White "Baselmans, Sam"]
[Black "Pijkeren, Jan"]
[Result "1-0"]
[ECO "B26"]
[WhiteElo "2182"]
[BlackElo "2196"]
[Annotator "TA"]
[PlyCount "61"]
[EventDate "2022.07.14"]
[EventType "swiss"]
[EventCountry "NED"]
[SourceTitle "playchess.com"]
[Source "ChessBase"]
[SourceQuality "1"]
[TimeControl "40/5400+30:1800+30"]

{[%evp 15,61,-3,-3,-42,-10,-21,0,0,0,-48,-38,-33,-41,-41,-38,-29,-30,-78,-74,-69,-79,-89,-34,-105,-79,-52,-47,-42,-39,-193,-190,-272,-189,-195,-196,-267,-217,-210,0,-5,-1,-50,0,-128,237,236,225,225]} 1. e4 {[%emt 0:00:03]} c5 {[%emt 0:00:05]} 2. Nc3 {[%emt 0:00:06]} Nc6 {[%emt 0:00:06]} 3. g3 {[%emt 0:00:10]} g6 {[%emt 0:00:04]} 4. Bg2 {[%emt 0:00:04]} Bg7 {[%emt 0:00:03]} 5. d3 {[%emt 0:00:04]} d6 {[%emt 0:00:05]} 6. Be3 {[%emt 0:01:07]} e5 {[%emt 0:00:09]} 7. Nge2 {[%emt 0:01:45]} Nge7 {[%emt 0:04:07]} 8. Qd2 {[%emt 0:01:43]} Nd4 {[%emt 0:02:03][%cal Oc8h3]} 9. O-O-O {[%emt 0:11:04] B26: Closed Sicilian: 3 g3, lines with early Be3.} Qa5 {[%emt 0:00:21][%cal Oc8h3]} 10. Kb1 $1 {[%emt 1:19:24] [#]} b5 $146 {[%emt 0:01:38][%cal Bb7b5,Bb5b4][%mdl 32]} ({Predecessor:} 10... Be6 11. Nc1 b5 12. h4 h5 13. Rdf1 Rc8 14. Qd1 c4 15. Bh3 f5 16. f4 b4 17. Bxd4 exd4 {0-1 (26) Chadaeva,T (1835)-Styazhkina,A (1999) Moscow 2011}) 11. Nxd4 {[%emt 0:00:00] The position is equal.} cxd4 {[%emt 0:02:47]} 12. Ne2 {[%emt 0:00:00]} b4 $15 {[%emt 0:04:52]} 13. Bh6 {[%emt 0:00:00] [#]} Be6 $1 {[%emt 0:00:36]} 14. Nc1 {[%emt 0:00:00]} Bxh6 {[%emt 0:09:42]} 15. Qxh6 {[%emt 0:00:00]} Qc7 {[%emt 0:00:37]} 16. Qd2 {[%emt 0:00:00]} (16. h4 $11) 16... a5 $17 {[%emt 0:00:55]} 17. h4 {[%emt 0:00:00]} h5 {[%emt 0:25:20]} 18. f4 {[%emt 0:00:00]} Kd7 {[%emt 0:04:18]} (18... Rb8 $17) 19. Rhf1 {[%emt 0:00:00]} (19. Bh3 $15) 19... Rhc8 {[%emt 0:04:42]} 20. Rf2 {[%emt 0:00:00]} a4 {[%emt 0:05:12][%cal Ob4b3]} 21. Qxb4 {[%emt 0:00:00]} Rcb8 {[%emt 0:00:47]} 22. Qa3 {[%emt 0:00:00]} (22. Qd2 $1 $15) 22... Ra5 $1 $19 {[%emt 0:05:34]} 23. Rdf1 {[%emt 0:00:00]} (23. fxe5 {was necessary.} dxe5 24. Ne2) 23... Kd8 {[%emt 0:04:56]} 24. fxe5 {[%emt 0:00:00]} dxe5 {[%emt 0:00:17] Threatens to win with ...Rab5.} 25. Rxf7 {[%emt 0:00:00]} (25. Ne2 {was the only chance.} Rab5 26. c4 Rxb2+ 27. Qxb2) 25... Bxf7 {[%emt 0:00:10]} 26. Rxf7 {[%emt 0:00:00] Strongly threatening Rf8+.} Qc5 $2 {[%emt 0:03:18]} ({Black should try} 26... Ke8 $19 27. Rh7 Rb6) 27. Qxc5 $11 {[%emt 0:00:00] Dancing on a razor blade.} Rxc5 {[%emt 0:00:09]} 28. Bh3 {[%emt 0:00:00]} (28. Rf8+ $11 {deserves consideration.} Kc7 29. Rf3) 28... Rc6 {[%emt 0:02:26]} ({Black should play} 28... Ke8 $15 29. Rh7 Rb6 30. Rh8+ Kf7) 29. Ne2 {[%emt 0:00:00] [#]} (29. Rf8+ $11 {keeps the balance.} Kc7 30. Rf7) 29... Ng8 $2 {[%emt 0:04:06][%mdl 8192] [#]} (29... Ke8 $1 $17 {[%cal Re8f7]} 30. Rf1 Rb7) 30. Rd7+ $18 {[%emt 0:00:00]} Ke8 {[%emt 0:00:26]} 31. Rd5 {[%emt 0:00:00] Weighted Error Value: White=0.36/Black=0.57} 1-0

[Event "Dutch Open 2022"]
[Site "Dieren"]
[Date "2022.08.04"]
[Round "9.8"]
[White "Op den Dries, Johan"]
[Black "Burdalev, Kirill"]
[Result "1/2-1/2"]
[ECO "C51"]
[WhiteElo "2104"]
[BlackElo "2381"]
[Annotator "TA"]
[PlyCount "114"]
[EventDate "2022.07.14"]
[EventType "swiss"]
[EventCountry "NED"]
[SourceTitle "playchess.com"]
[Source "ChessBase"]
[SourceQuality "1"]
[TimeControl "40/5400+30:1800+30"]

{[%evp 21,114,-7,0,0,0,0,0,0,-5,-3,0,0,-7,-16,20,9,14,0,0,0,0,-42,-38,-68,-73,-70,-77,-65,-22,-32,0,-72,-72,-72,-81,-81,-80,-135,0,0,0,-27,0,0,0,0,0,0,0,0,0,0,3,0,0,0,0,0,0,0,0,0,0,0,0,-39,-40,-114,-114,-114,-114,-114,-113,-276,-113,-114,-114,-114,-114,-114,-114,-115,-115,-115,-115,-140,-122,-115,0,-138,0,-115,-141,-165,-111]} 1. e4 {[%emt 0:00:02]} e5 {[%emt 0:00:06]} 2. Nf3 {[%emt 0:00:12]} Nc6 {[%emt 0:00:02]} 3. Bc4 {[%emt 0:00:07]} Bc5 {[%emt 0:00:03]} 4. b4 {[%emt 0:00:23]} Bxb4 {[%emt 0:00:29]} 5. c3 {[%emt 0:00:06]} Be7 {[%emt 0:00:02]} 6. d4 {[%emt 0:00:26]} Na5 {[%emt 0:00:03]} 7. Nxe5 {[%emt 0:01:07]} Nxc4 {[%emt 0:00:05]} 8. Nxc4 {[%emt 0:00:04]} d5 {[%emt 0:00:06]} 9. exd5 {[%emt 0:00:28]} Qxd5 {[%emt 0:02:57]} 10. Ne3 {[%emt 0:00:07]} Qd8 {[%emt 0:00:18]} 11. O-O {[%emt 0:00:18]} Nf6 {[%emt 0:00:10]} 12. Ba3 {[%emt 0:01:10] C51: Evans Gambit: Declined and Accepted without 5...Ba5.} O-O {[%emt 0:00:35]} 13. Bxe7 {[%emt 0:00:13]} Qxe7 {[%emt 0:00:04]} 14. Nd2 {[%emt 0:00:09] The position is equal.} Be6 {[%emt 0:01:09]} 15. Qf3 {[%emt 0:01:10]} c6 {[%emt 0:00:12]} 16. Rfe1 {[%emt 0:03:03]} Qa3 {[%emt 0:07:02]} 17. Nec4 {[%emt 0:00:16]} Qa6 {[%emt 0:01:23] [#]} 18. Nd6 $146 {[%emt 0:05:27]} ({Predecessor:} 18. Ne5 Rfd8 19. Ne4 Nxe4 20. Qxe4 Bd5 21. Qh4 Rd6 22. Qg3 Re6 23. h3 Rae8 24. Rec1 {1-0 (36) Shim Ng Min,F (1228)-Alonso,S (1332) IECC email 2018}) 18... Rad8 {[%emt 0:00:15]} 19. N2e4 {[%emt 0:02:54]} Nxe4 {[%emt 0:03:05]} 20. Nxe4 {[%emt 0:00:03]} Bd5 {[%emt 0:01:58]} 21. Nc5 {[%emt 0:05:59]} Qa3 {[%emt 0:01:00]} 22. Qg3 {[%emt 0:03:41]} b6 {[%emt 0:01:28]} 23. Ne4 {[%emt 0:01:33]} Bxe4 {[%emt 0:06:17]} 24. Rxe4 {[%emt 0:01:20]} Rfe8 {[%emt 0:00:02]} 25. Re3 {[%emt 0:03:28]} g6 {[%emt 0:11:07]} 26. Rae1 {[%emt 0:03:06]} (26. Qc7 $1 $11 {remains equal.}) 26... Rxe3 $17 {[%emt 0:02:26]} 27. Qxe3 {[%emt 0:00:03]} Qxa2 {[%emt 0:02:31][%mdl 4096] Endgame KQR-KQR} 28. Qe7 {[%emt 0:00:06]} Rf8 {[%emt 0:04:04]} 29. h4 {[%emt 0:00:18][%cal Oh4h5]} Qa5 {[%emt 0:08:35]} ({Better is} 29... Qd2 $17 30. Rb1 Qxc3 31. Qxa7 Re8 32. Qxb6 Re1+ 33. Rxe1 Qxe1+ 34. Kh2 Qxf2) 30. Re3 $1 $11 {[%emt 0:01:10]} h5 {[%emt 0:02:27]} 31. Qf6 {[%emt 0:03:28]} Qf5 {[%emt 0:16:34]} 32. Qxc6 {[%emt 0:00:42]} Qc8 {[%emt 0:03:19]} 33. Qb5 {[%emt 0:05:06]} Qd8 {[%emt 0:02:24]} 34. g3 {[%emt 0:00:17]} Qd6 {[%emt 0:00:48]} 35. d5 {[%emt 0:03:06]} Kg7 {[%emt 0:01:08]} 36. c4 {[%emt 0:01:21]} Rc8 {[%emt 0:04:19]} 37. Re8 {[%emt 0:00:22]} Rxe8 {[%emt 0:00:35]} 38. Qxe8 {[%emt 0:00:04] KQ-KQ} Kf6 {[%emt 0:01:19]} 39. Kg2 {[%emt 0:03:47]} a6 {[%emt 0:07:24]} 40. f3 {[%emt 0:01:10]} a5 {[%emt 0:07:30]} 41. g4 {[%emt 0:30:13]} hxg4 {[%emt 0:31:41]} 42. fxg4 {[%emt 0:00:04] [#] aiming for Qc6.} Qf4 {[%emt 0:00:00][%csl LRc4,LRg4]} 43. Qd8+ {[%emt 0:00:00]} Kg7 $1 {[%emt 0:00:00]} 44. d6 {[%emt 0:00:00]} (44. g5 $1 $15) 44... Qxg4+ $17 {[%emt 0:00:00]} 45. Kh2 {[%emt 0:00:00]} Qf4+ {[%emt 0:00:00]} (45... Qxc4 $6 46. d7 $11) (45... a4 {keeps more tension.} 46. d7 Qe2+ 47. Kg3 Qe1+) 46. Kg2 {[%emt 0:00:00]} Qe4+ {[%emt 0:00:00]} (46... Qxc4 $6 47. d7 $11) 47. Kh2 $2 {[%emt 0:00:00] [#]} (47. Kg3 $17 {might work better.}) 47... Qe5+ {[%emt 0:00:00]} (47... Qxc4 48. d7 $11) (47... a4 $1 $19 {[%cal Ra4a3] is more deadly. Strongly threatening ...a3.} 48. d7 a3) 48. Kg2 {[%emt 0:00:00]} Qe2+ {[%emt 0:00:00]} (48... a4 {is interesting.} 49. d7 Qe4+ 50. Kh3 a3) 49. Kg3 {[%emt 0:00:00]} Qd3+ {[%emt 0:00:00]} (49... Qxc4 $6 50. d7 $11) 50. Kh2 {[%emt 0:00:00]} Qc2+ {[%emt 0:00:00]} (50... Qxc4 $6 51. d7 $11) (50... a4 {with more complications.} 51. d7 Qe2+ 52. Kg3 Qe3+) 51. Kg3 {[%emt 0:00:00]} Qc3+ {[%emt 0:00:00]} ({Reject} 51... Qxc4 $6 52. d7 $11) 52. Kg2 {[%emt 0:00:00]} Qb2+ {[%emt 0:00:00]} ({Much weaker is} 52... Qxc4 $6 53. d7 $11) 53. Kg3 {[%emt 0:00:00][%cal Oh4h5]} Qb3+ {[%emt 0:00:17]} 54. Kg2 {[%emt 0:00:00][%cal Oh4h5]} Qb2+ {[%emt 0:03:18]} (54... Qxc4 $6 55. d7 $11) 55. Kg3 {[%emt 0:00:00]} Qc3+ {[%emt 0:00:16]} 56. Kg2 $1 {[%emt 0:00:00]} Qd2+ {[%emt 0:01:10]} ({But not} 56... Qxc4 $6 57. d7 $11) 57. Kg3 {[%emt 0:00:00]} Qe3+ {[%emt 0:01:47] Weighted Error Value: White=0.12 (very precise) /Black=0.15 (very precise)} (57... a4 $19 58. d7 a3) 1/2-1/2

[Event "Dutch Open 2022"]
[Site "Dieren"]
[Date "2022.08.04"]
[Round "9.9"]
[White "Kumar, Prajit Sai"]
[Black "Van Baar, Esper"]
[Result "0-1"]
[ECO "D02"]
[WhiteElo "2040"]
[BlackElo "2281"]
[Annotator "TA"]
[PlyCount "102"]
[EventDate "2022.07.14"]
[EventType "swiss"]
[EventCountry "NED"]
[SourceTitle "playchess.com"]
[Source "ChessBase"]
[SourceQuality "1"]
[TimeControl "40/5400+30:1800+30"]

{[%evp 15,102,-6,4,8,12,0,0,2,0,-2,0,0,10,-10,-2,-6,-10,-16,10,14,19,16,7,10,38,37,56,56,55,12,3,-37,-25,-95,-98,-88,-71,-168,-161,-162,-127,-122,-122,-111,-104,-236,-97,-293,-316,-270,-79,-125,-130,-416,-423,-437,-422,-423,-388,-439,-275,-328,0,-279,-233,-556,-384,-546,-533,-514,-528,-888,-838,-837,-814,-806,-796,-783,-768,-768,-753,-753,-708,-551,-410,-29972,-29973,-29970,-29968]} 1. d4 {[%emt 0:00:06]} Nf6 {[%emt 0:01:47]} 2. Nf3 {[%emt 0:00:44]} d5 {[%emt 0:00:09]} 3. c3 {[%emt 0:00:05]} e6 {[%emt 0:00:07]} 4. Bf4 {[%emt 0:00:06]} c5 {[%emt 0:00:48]} 5. e3 {[%emt 0:00:06]} Nc6 {[%emt 0:00:17]} 6. Nbd2 {[%emt 0:00:07]} Bd6 {[%emt 0:00:32]} 7. Bg3 {[%emt 0:00:11]} O-O {[%emt 0:01:06]} 8. Bd3 {[%emt 0:00:07]} Qe7 {[%emt 0:02:02]} 9. Ne5 {[%emt 0:00:36] D02: 1 d4 d5 2 Nf3 sidelines, including 2...Nf6 3 g3 and 2...Nf6 3 Bf4.} Qc7 {[%emt 0:00:39][%cal Rc6e5]} 10. f4 {[%emt 0:01:28]} Ne7 {[%emt 0:05:25] [#]} 11. Bh4 $146 {[%emt 0:06:16] The position is equal.} ({Predecessor:} 11. Bf2 b6 12. g4 Bb7 13. Qf3 Rad8 14. Rg1 Nd7 15. Qh3 Nf6 16. g5 Ne4 17. Bxe4 dxe4 {0-1 (37) Nechaeva,M (2372)-Samant,A (2433) Chess.com INT 2022}) 11... Ne8 {[%emt 0:07:07]} 12. Bxe7 {[%emt 0:01:43]} Qxe7 {[%emt 0:00:51]} 13. O-O {[%emt 0:06:28]} f5 {[%emt 0:08:41]} 14. Ndf3 {[%emt 0:04:02]} Nf6 {[%emt 0:01:39]} 15. Qe1 {[%emt 0:03:22]} b6 {[%emt 0:01:46]} 16. Qh4 {[%emt 0:01:54]} Bd7 {[%emt 0:09:13][%cal Bc8d7,Bd7e8,Be8f7][%mdl 32]} 17. g4 {[%emt 0:02:39]} g6 {[%emt 0:15:03]} 18. gxf5 {[%emt 0:03:03]} exf5 {[%emt 0:00:55]} 19. Rf2 {[%emt 0:02:47]} Be8 {[%emt 0:03:52]} 20. Rg2 {[%emt 0:01:05] Black must now prevent Bxf5.} Ne4 {[%emt 0:01:47]} 21. Bxe4 {[%emt 0:06:34]} dxe4 {[%emt 0:02:18]} 22. Qxe7 {[%emt 0:07:51]} (22. Ng5 {seems wilder.} cxd4 23. cxd4 Rc8 24. d5) 22... Bxe7 {[%emt 0:00:27]} 23. Nd2 {[%emt 0:04:15]} Bf7 {[%emt 0:00:45]} 24. c4 {[%emt 0:02:54]} (24. dxc5 $11 {remains equal.} Bxc5 25. Kf2) 24... cxd4 $17 {[%emt 0:00:54]} 25. exd4 {[%emt 0:00:07]} Rac8 {[%emt 0:00:31]} 26. b3 {[%emt 0:03:21]} (26. Kf2 $17 {was necessary.}) 26... Rfd8 $19 {[%emt 0:00:21]} 27. d5 {[%emt 0:03:24]} b5 {[%emt 0:02:26]} 28. Nc6 {[%emt 0:01:18]} Bc5+ {[%emt 0:03:28]} 29. Kf1 {[%emt 0:00:34]} Re8 {[%emt 0:01:21]} 30. Ke2 {[%emt 0:01:57]} (30. Rb1 $17) 30... Rc7 {[%emt 0:03:12]} (30... bxc4 $19 31. Nxc4 Bxd5) 31. a4 $2 {[%emt 0:04:31]} (31. Ne5 $17) 31... bxc4 {[%emt 0:00:57]} 32. bxc4 {[%emt 0:00:11]} h6 $2 {[%emt 0:02:15]} (32... e3 $19 {and Black stays clearly on top.} 33. Nf3 {[#]} Rxc6 $1 34. dxc6 Bxc4+ 35. Kd1 Rd8+ 36. Kc1 e2) 33. Rb1 {[%emt 0:02:12]} (33. h4 $142) 33... g5 $17 {[%emt 0:01:22][%cal Bg6g5,Bg5g4][%mdl 32]} 34. h4 $2 {[%emt 0:07:32][%mdl 8192]} (34. fxg5 $17 f4 35. Kf1 (35. gxh6+ Kh7 $17)) 34... Bh5+ $19 {[%emt 0:02:46]} 35. Ke1 {[%emt 0:00:11]} Bf3 {[%emt 0:11:59] A strong pair of Bishops.} 36. Rg3 {[%emt 0:00:29]} g4 {[%emt 0:00:16]} 37. Ne5 {[%emt 0:04:41]} Bd6 {[%emt 0:01:36]} 38. Kf2 {[%emt 0:01:34]} Bc5+ $2 {[%emt 0:06:28]} ({Black should play} 38... Kg7 $19 39. Ndxf3 exf3) 39. Kf1 $2 {[%emt 0:00:11][%mdl 8192]} (39. Ke1 $1 $11 {and White is okay.}) 39... Kh7 {[%emt 0:01:55]} 40. Re1 $2 {[%emt 0:04:57]} (40. Rb3 {is a better chance.}) 40... Bb4 {[%emt 0:00:38]} 41. d6 {[%emt 0:32:43]} (41. Ndxf3 {was called for.} exf3 42. Re3) 41... Bxd6 {[%emt 0:09:30]} ({Worse is} 41... Bxd2 42. dxc7 Rc8 43. Rxf3 (43. Nxf3 $2 exf3 44. Re7+ Kg6 $19) 43... Bxe1 44. Rb3 $17) 42. Ndxf3 {[%emt 0:00:00]} gxf3 {[%emt 0:05:32]} 43. Kf2 {[%emt 0:00:00]} Bxe5 {[%emt 0:00:49]} 44. fxe5 {[%emt 0:00:00]} Rxc4 {[%emt 0:02:12][%mdl 4096] Endgame Threatens to win with ...f4. KRR-KRR} 45. Rb1 {[%emt 0:00:00]} Re7 {[%emt 0:00:58] Strongly threatening ...f4.} 46. Ke3 {[%emt 0:00:00]} Rc5 {[%emt 0:01:43]} 47. e6 {[%emt 0:00:00]} Re5 {[%emt 0:03:36]} 48. Kf4 {[%emt 0:00:00]} R7xe6 {[%emt 0:01:28]} 49. h5 {[%emt 0:00:00]} f2 {[%emt 0:01:45] aiming for ...e3.} 50. Ke3 {[%emt 0:00:00] [#]} (50. Re3 $19 Ra5 51. Rf1) 50... f4+ {[%emt 0:02:48]} 51. Kxf4 {[%emt 0:00:00]} e3 {[%emt 0:00:11] Weighted Error Value: White=0.72/Black=0.45} 0-1

[Event "Dutch Open 2022"]
[Site "Dieren"]
[Date "2022.08.04"]
[Round "9.10"]
[White "Bus, Tom"]
[Black "Manukonda Arun"]
[Result "1/2-1/2"]
[ECO "D02"]
[WhiteElo "2102"]
[BlackElo "2021"]
[Annotator "TA"]
[PlyCount "22"]
[EventDate "2022.07.14"]
[EventType "swiss"]
[EventCountry "NED"]
[SourceTitle "playchess.com"]
[Source "ChessBase"]
[SourceQuality "1"]
[TimeControl "40/5400+30:1800+30"]

{[%evp 9,22,23,30,3,33,39,58,39,45,56,58,57,89,72,81]} 1. Nf3 {[%emt 0:00:03]} d5 {[%emt 0:03:55]} 2. g3 {[%emt 0:00:46]} Nc6 {[%emt 0:00:02]} 3. d4 {[%emt 0:00:43]} Bf5 {[%emt 0:00:02]} 4. Bg2 {[%emt 0:00:29]} Nb4 {[%emt 0:01:04]} 5. Na3 {[%emt 0:00:20]} e6 {[%emt 0:00:43]} 6. Nh4 {[%emt 1:31:09] D02: 1 d4 d5 2 Nf3 sidelines, including 2...Nf6 3 g3 and 2...Nf6 3 Bf4.} Be4 {[%emt 0:01:59]} 7. f3 {[%emt 0:00:00]} Bg6 {[%emt 0:01:56]} 8. c3 {[%emt 0:00:00]} Nc6 {[%emt 0:00:03]} 9. Qb3 {[%emt 0:00:00]} Rb8 {[%emt 0:00:10][%cal Ob7b5]} 10. e4 {[%emt 0:00:00] [#]} Be7 $146 {[%emt 0:02:42]} ({Predecessor:} 10... b5 11. O-O Na5 12. Qd1 Bxa3 13. bxa3 Qd7 14. exd5 Qxd5 15. a4 Nf6 16. axb5 Qxb5 17. Nxg6 hxg6 {½-½ (32) Yilmazyerli,M (2504)-Demchenko,A (2654) Teplice 2022}) 11. Nxg6 {[%emt 0:00:00]} hxg6 {[%emt 0:01:16] Black got outplayed after the opening.  Weighted Error Value: White=0.05 (flawless) /Black=0.12 (very precise)} 1/2-1/2

[Event "Dutch Open 2022"]
[Site "Dieren"]
[Date "2022.08.04"]
[Round "9.11"]
[White "Vos, Tjark"]
[Black "Vogel, Jaap"]
[Result "1-0"]
[ECO "C07"]
[WhiteElo "2224"]
[BlackElo "2147"]
[Annotator "TA"]
[PlyCount "69"]
[EventDate "2022.07.14"]
[EventType "swiss"]
[EventCountry "NED"]
[SourceTitle "playchess.com"]
[Source "ChessBase"]
[SourceQuality "1"]
[TimeControl "40/5400+30:1800+30"]

{[%evp 16,69,15,13,22,12,50,59,50,0,4,9,11,-6,0,0,0,0,0,0,0,0,0,0,0,0,0,-22,0,-64,39,17,26,28,131,113,192,175,292,288,305,146,146,139,138,125,116,123,125,5,833,828,1441,1422,1280,1255]} 1. e4 {[%emt 0:00:02]} e6 {[%emt 0:00:05]} 2. d4 {[%emt 0:00:04]} d5 {[%emt 0:00:07]} 3. Nd2 {[%emt 0:00:04][%cal Bb1d2,Bd2b3,Bb3d4][%mdl 32]} c5 {[%emt 0:00:41]} 4. exd5 {[%emt 0:00:21]} Qxd5 {[%emt 0:00:26]} 5. Ngf3 {[%emt 0:00:10]} cxd4 {[%emt 0:00:41]} 6. Bc4 {[%emt 0:00:05]} Qd6 {[%emt 0:01:20]} 7. O-O {[%emt 0:00:36]} Nf6 {[%emt 0:01:21]} 8. Nb3 {[%emt 0:00:26]} Nc6 {[%emt 0:06:29]} 9. Nbxd4 {[%emt 0:00:33]} a6 {[%emt 0:00:45] C07: French Tarrasch: 3...c5, 4 Ngf3 and 4 exd5 Qxd5.} 10. Re1 {[%emt 0:04:35]} Be7 {[%emt 0:01:23]} 11. Nxc6 {[%emt 0:05:11]} Qxc6 {[%emt 0:10:55] [#] White is slightly better.} 12. b3 $146 {[%emt 0:06:48]} (12. Ne5 $14 Qb6 13. Qf3) ({Predecessor:} 12. Ne5 Qc5 13. Bb3 O-O 14. Qf3 Bd6 15. Bf4 Rb8 16. Rad1 Rd8 17. Qg3 Bd7 18. Rxd6 Qxd6 19. Nd3 Qc6 20. Bxb8 Ne4 21. Qc7 {1-0 (21) Sofronie,I (2467)-Panainte,A (1872) Chess.com INT 2020}) 12... O-O {[%emt 0:06:22]} 13. Bb2 {[%emt 0:01:03]} b5 {[%emt 0:13:18]} 14. Bd3 {[%emt 0:00:06] [#] Strongly threatening Bxf6.} Bb7 {[%emt 0:01:05]} 15. Qd2 {[%emt 0:13:06]} Rad8 {[%emt 0:15:52]} 16. Qg5 {[%emt 0:03:17]} h6 {[%emt 0:14:17]} 17. Qg3 {[%emt 0:07:45]} Qd6 {[%emt 0:03:31]} 18. Ne5 {[%emt 0:08:43]} Qc7 {[%emt 0:14:52]} 19. Kh1 {[%emt 0:10:58]} Nh5 {[%emt 0:02:44]} 20. Qg4 {[%emt 0:02:56]} Nf6 {[%emt 0:00:11]} 21. Qh3 {[%emt 0:00:05][%cal Oe5g6]} Rd5 {[%emt 0:02:02]} (21... Nd5 $5 {[%cal Rd5f4]} 22. Qg4 f5 $11) 22. f4 {[%emt 0:08:02]} ({Better is} 22. c4 $11 bxc4 23. bxc4) 22... Rc5 {[%emt 0:00:31]} ({Black should try} 22... Bc5 $1 $15) 23. Re2 {[%emt 0:02:05]} Nd5 {[%emt 0:00:39]} 24. Rf1 {[%emt 0:01:16] Black must now prevent Ng4.} Nc3 {[%emt 0:00:41]} (24... Bf6 $11 {remains equal.}) 25. Re3 $16 {[%emt 0:00:23] Ng4 is the strong threat.} b4 {[%emt 0:00:19]} (25... f5 $16 {was worth a try.}) 26. Rg3 $18 {[%emt 0:01:23] White wants to mate with Qxh6.} Kh8 {[%emt 0:00:20]} (26... f5 {is a better defense.} 27. Qxh6 (27. Bxc3 Rxc3 28. Qxh6 Bf6 $16) 27... Bf6) 27. Ng4 {[%emt 0:00:04][%cal Og4h6] Threatening mate with Nxh6!} ({And not} 27. Qg4 Bf6 $11) 27... h5 {[%emt 0:00:50]} 28. Ne5 {[%emt 0:08:07]} (28. f5 $18 g6 29. fxg6 fxg6 30. Rxf8+ Bxf8 31. Ne3 (31. Bxg6 $2 Qf4 $17)) 28... Rxe5 $16 {[%emt 0:00:16]} 29. fxe5 {[%emt 0:00:05]} Qxe5 {[%emt 0:00:13]} 30. a3 {[%emt 0:01:24]} a5 {[%emt 0:00:06]} 31. axb4 {[%emt 0:00:25] The board is on fire.} axb4 {[%emt 0:00:01]} 32. Bc1 $40 {[%emt 0:00:59][%mdl 128] White mounts an attack.} ({White should play} 32. Bxc3 $16 bxc3 33. Re3) 32... Nd5 $2 {[%emt 0:01:43][%mdl 8192] [#]} (32... Ne4 $11) 33. Rg5 $3 $18 {[%emt 0:01:43][%mdl 512] White is clearly winning.} Qxg5 {[%emt 0:00:53]} (33... f5 34. Rxh5+) 34. Bxg5 {[%emt 0:00:06]} Bxg5 {[%emt 0:00:41]} 35. Qxh5+ {[%emt 0:00:06] Weighted Error Value: White=0.28 (precise) /Black=0.30} 1-0

[Event "Dutch Open 2022"]
[Site "Dieren"]
[Date "2022.08.04"]
[Round "9.12"]
[White "De Boer, Bas"]
[Black "Achuthan, Dylan"]
[Result "1/2-1/2"]
[ECO "E60"]
[WhiteElo "2136"]
[BlackElo "1989"]
[Annotator "TA"]
[PlyCount "42"]
[EventDate "2022.07.14"]
[EventType "swiss"]
[EventCountry "NED"]
[SourceTitle "playchess.com"]
[Source "ChessBase"]
[SourceQuality "1"]
[TimeControl "40/5400+30:1800+30"]

{[%evp 9,42,0,3,-36,-39,-43,-42,-54,22,11,17,17,27,0,0,0,0,0,0,0,0,-19,-21,-27,0,0,0,0,0,0,0,0,0,0,0]} 1. d4 {[%emt 0:00:02]} Nf6 {[%emt 0:00:07]} 2. c4 {[%emt 0:00:06]} g6 {[%emt 0:00:10]} 3. h4 {[%emt 0:00:07][%cal Bh2h4,Bh4h5][%mdl 32]} Bg7 {[%emt 0:00:30]} 4. Nc3 {[%emt 0:00:17]} d5 {[%emt 0:00:21]} 5. cxd5 {[%emt 0:06:34]} Nxd5 {[%emt 0:00:56][%cal Oc7c5]} 6. h5 {[%emt 0:01:18] E60: King's Indian: Unusual lines and Fianchetto Variation without Nc3.} c5 $1 {[%emt 0:00:33] aiming for ...Nxc3.} 7. e3 {[%emt 0:05:37]} Nc6 {[%emt 0:03:18][%cal Rc5d4]} 8. Qb3 {[%emt 0:07:43] [#] Black is slightly better.} e6 $146 {[%emt 0:12:23]} (8... Ndb4 $15 9. a3 Be6) ({Predecessor:} 8... Nxc3 9. bxc3 O-O 10. hxg6 hxg6 11. Bd3 Be6 12. Qd1 Rc8 13. Ne2 cxd4 14. exd4 Qd7 {1-0 (35) Baranyai,K (2330)-Dolgener,T (2270) Hungary 1999}) 9. hxg6 {[%emt 0:03:49]} (9. Nxd5 {keeps more tension.} Qxd5 10. dxc5 Qxc5 11. Bd2) 9... hxg6 {[%emt 0:00:39]} (9... fxg6 {seems wilder.} 10. dxc5 Nxc3 11. bxc3 O-O) 10. Rxh8+ {[%emt 0:00:06]} Bxh8 {[%emt 0:00:05]} 11. Nxd5 {[%emt 0:00:16]} (11. dxc5 {looks sharper.} Nxc3 12. bxc3 Qa5 13. Ne2) 11... Qxd5 {[%emt 0:01:19]} 12. Qxd5 {[%emt 0:03:16]} exd5 {[%emt 0:00:19]} 13. dxc5 {[%emt 0:00:09]} Nb4 {[%emt 0:00:39] [#] Strongly threatening ...Nc2+.} 14. Kd2 {[%emt 0:03:41] Against Nc2} Bf5 {[%emt 0:14:00]} 15. a3 {[%emt 0:15:36]} Nc6 {[%emt 0:13:38]} 16. Bb5 {[%emt 0:14:33]} Ke7 {[%emt 0:03:03]} 17. Bxc6 {[%emt 0:00:24] The position is equal.} bxc6 {[%emt 0:00:03]} 18. Ne2 {[%emt 0:00:12]} Rb8 {[%emt 0:02:10]} 19. Nd4 {[%emt 0:07:19]} Bxd4 {[%emt 0:00:23]} 20. exd4 {[%emt 0:00:02]} Rb3 $1 {[%emt 0:00:11]} 21. Ke1 {[%emt 0:00:48]} Rd3 {[%emt 0:00:28] Weighted Error Value: White=0.07 (flawless) /Black=0.12 (very precise)} 1/2-1/2